bitfinex-derivatives/quotes_BTCF0:USTF0_20251214
["timestamp","ask_amount","ask_price","bid_price","bid_amount"]
[1765737033149,0.05508,88876.0,88875.0,0.0923308]
[1765737033650,0.02714,88876.0,88875.0,0.0923308]
[1765737033848,0.00016875,88879.0,88878.0,0.0677904]
[1765737034053,0.02730875,88879.0,88878.0,0.0677904]
[1765737034239,0.05524875,88879.0,88878.0,0.0677904]
[1765737035251,0.05524875,88879.0,88878.0,0.0707904]
[1765737035750,0.02730875,88879.0,88878.0,0.0707904]
[1765737035952,0.05524875,88879.0,88878.0,0.0707904]
[1765737036452,0.05524875,88879.0,88878.0,0.0747904]
[1765737036951,0.02714,88887.0,88886.0,0.0112494]
[1765737037155,0.3608,88896.0,88895.0,0.07308]
[1765737037350,0.42150639,88907.0,88895.0,0.07308]
[1765737037351,0.3608,88900.0,88899.0,0.0677878]
[1765737037557,0.38794,88911.0,88910.0,0.0677864]
[1765737037945,0.3608,88911.0,88910.0,0.0677864]
[1765737038146,0.05519107,88919.0,88918.0,0.0677854]
[1765737038351,0.02780925,88919.0,88918.0,0.0677854]
[1765737038553,0.02780925,88919.0,88918.0,0.4285854]
[1765737039158,0.0112434,88934.0,88920.0,0.05654]
[1765737039448,0.05530514,88921.0,88920.0,0.05654]
[1765737040653,0.06230514,88921.0,88920.0,0.05654]
[1765737041262,0.06230514,88921.0,88920.0,0.02783]
[1765737041555,0.06230514,88921.0,88920.0,0.05654]
[1765737041743,0.06230514,88921.0,88920.0,0.07308]
[1765737042150,0.05534615,88921.0,88920.0,0.07308]
[1765737045048,0.05534615,88921.0,88920.0,0.0843251]
[1765737045466,0.05534615,88921.0,88920.0,0.09583802]
[1765737045467,0.007,88921.0,88920.0,0.09583802]
[1765737047262,0.00571479,88921.0,88920.0,0.09583802]
[1765737048156,0.00548965,88921.0,88920.0,0.09583802]
[1765737048352,0.05508,88943.0,88942.0,0.0112423]
[1765737048554,0.05508,88943.0,88942.0,0.0677823]
[1765737049355,0.05908,88943.0,88942.0,0.0677823]
[1765737049556,0.03114,88943.0,88942.0,0.0677823]
[1765737049967,0.03214,88943.0,88942.0,0.0677823]
[1765737050661,0.005,88943.0,88942.0,0.0677823]
[1765737050867,0.03214,88943.0,88942.0,0.0677823]
[1765737051170,0.06008,88943.0,88942.0,0.0677823]
[1765737051665,0.03214,88943.0,88942.0,0.0677823]
[1765737051867,0.06008,88943.0,88942.0,0.0677823]
[1765737056772,0.08736448,88943.0,88942.0,0.0677823]
[1765737060359,0.05662,88942.0,88941.0,0.0112424]
[1765737060565,0.07007,88935.0,88934.0,0.00016865]
[1765737060765,0.45815448,88935.0,88934.0,0.00016865]
[1765737060970,0.0678646,88924.0,88923.0,0.3608]
[1765737061174,0.05662,88911.0,88910.0,0.66005586]
[1765737061469,0.41742,88924.0,88923.0,0.0686447]
[1765737061674,0.44474338,88924.0,88923.0,0.0686447]
[1765737061878,0.08394338,88924.0,88923.0,0.0686447]
[1765737066674,0.05662,88916.0,88915.0,0.00016865]
[1765737066878,0.0112459,88915.0,88890.0,0.01635]
[1765737067076,0.05662,88885.0,88884.0,0.07375]
[1765737067377,0.08404787,88885.0,88884.0,0.0574]
[1765737067777,0.08404787,88885.0,88884.0,0.02967]
[1765737068076,0.0678697,88884.0,88883.0,0.3608]
[1765737068284,0.08404787,88884.0,88883.0,0.3608]
[1765737068469,0.08404787,88884.0,88883.0,0.4182]
[1765737069270,0.08404787,88884.0,88883.0,0.4202]
[1765737070076,0.08404787,88884.0,88883.0,0.4222]
[1765737070977,0.08404787,88884.0,88883.0,0.0614]
[1765737071368,0.05662,88884.0,88883.0,0.0614]
[1765737072186,0.05662,88884.0,88883.0,0.004]
[1765737072187,0.4286697,88884.0,88883.0,0.004]
[1765737072377,0.45602292,88884.0,88883.0,0.004]
[1765737073180,0.39940292,88884.0,88881.0,0.00014034]
[1765737073390,0.05662,88882.0,88881.0,0.00014034]
[1765737073577,0.08397322,88882.0,88881.0,0.00014034]
[1765737074376,0.05662,88882.0,88881.0,0.00214034]
[1765737074576,0.08394781,88882.0,88881.0,0.00214034]
[1765737074776,0.05662,88882.0,88881.0,0.00214034]
[1765737075686,0.05662,88882.0,88881.0,0.00514034]
[1765737078890,0.0678706,88877.0,88876.0,0.00016876]
[1765737079889,0.06798788,88877.0,88876.0,0.00016876]
[1765737080293,0.06798788,88877.0,88876.0,0.00616876]
[1765737082082,0.06798788,88877.0,88876.0,0.03583876]
[1765737082587,0.06798788,88877.0,88876.0,0.00616876]
[1765737087392,0.09569175,88877.0,88876.0,0.00616876]
[1765737087891,0.09569175,88877.0,88860.0,0.0277]
[1765737087892,0.0661226,88861.0,88860.0,0.0277]
[1765737088092,0.0661226,88861.0,88848.0,0.3997542]
[1765737088093,0.05487,88849.0,88848.0,0.3997542]
[1765737088294,0.05487,88849.0,88848.0,0.09490053]
[1765737089287,0.05503876,88857.0,88856.0,0.0662332]
[1765737090595,0.00016876,88857.0,88856.0,0.4270332]
[1765737090996,0.00216876,88857.0,88856.0,0.4270332]
[1765737092891,0.00011785,88861.0,88860.0,0.0681927]
[1765737095189,0.00016876,88869.0,88868.0,0.0681917]
[1765737095394,0.0279762,88869.0,88868.0,0.0681917]
[1765737096299,0.00016876,88869.0,88868.0,0.0681917]
[1765737096499,0.00016876,88869.0,88868.0,0.0691917]
[1765737098701,0.00016876,88869.0,88868.0,0.0681917]
[1765737098999,0.00016876,88869.0,88868.0,0.0691917]
[1765737102607,0.00016876,88869.0,88868.0,0.0681917]
[1765737102797,0.00016876,88869.0,88868.0,0.0691917]
[1765737107213,0.08400294,88869.0,88868.0,0.001]
[1765737107512,0.05597,88861.0,88860.0,0.00016876]
[1765737107809,0.45588678,88861.0,88860.0,0.00016876]
[1765737108812,0.45988678,88861.0,88860.0,0.00016876]
[1765737109410,0.46388678,88861.0,88860.0,0.00016876]
[1765737111010,0.46388678,88861.0,88860.0,0.05710876]
[1765737112110,0.39666418,88861.0,88860.0,0.05710876]
[1765737112316,0.03086418,88861.0,88860.0,0.05710876]
[1765737112510,0.03386418,88861.0,88860.0,0.05710876]
[1765737112909,0.03086418,88861.0,88860.0,0.05710876]
[1765737113108,0.06183418,88861.0,88860.0,0.05710876]
[1765737114117,0.08983418,88861.0,88860.0,0.05710876]
[1765737114619,0.08683418,88861.0,88860.0,0.05710876]
[1765737114816,0.08583418,88861.0,88860.0,0.05710876]
[1765737115016,0.08683418,88861.0,88860.0,0.05710876]
[1765737115217,0.08483418,88861.0,88860.0,0.05710876]
[1765737115412,0.08683418,88861.0,88860.0,0.05710876]
[1765737115916,0.05883418,88861.0,88860.0,0.05710876]
[1765737116319,0.03097,88861.0,88860.0,0.05710876]
[1765737117120,0.003,88861.0,88860.0,0.05710876]
[1765737117419,0.03167,88861.0,88860.0,0.05710876]
[1765737117618,0.03267,88861.0,88860.0,0.05710876]
[1765737118018,0.06092,88861.0,88860.0,0.05710876]
[1765737118214,0.05992,88861.0,88860.0,0.05710876]
[1765737118422,0.06092,88861.0,88860.0,0.05710876]
[1765737118617,0.05992,88861.0,88860.0,0.05710876]
[1765737118822,0.002,88861.0,88860.0,0.05710876]
[1765737120416,0.05992,88861.0,88860.0,0.05710876]
[1765737121113,0.001,88861.0,88860.0,0.05710876]
[1765737121314,0.002,88861.0,88860.0,0.05710876]
[1765737122019,0.001,88861.0,88860.0,0.05710876]
[1765737122216,0.002,88861.0,88860.0,0.05710876]
[1765737122916,0.05992,88861.0,88860.0,0.05710876]
[1765737123828,0.05892,88861.0,88860.0,0.05710876]
[1765737126132,0.05992,88861.0,88860.0,0.05710876]
[1765737127037,0.05892,88861.0,88860.0,0.05710876]
[1765737127219,0.05992,88861.0,88860.0,0.05710876]
[1765737128335,0.05892,88861.0,88860.0,0.05710876]
[1765737128536,0.06092,88861.0,88860.0,0.05710876]
[1765737128733,0.003,88861.0,88860.0,0.05710876]
[1765737128934,0.0011687,88861.0,88860.0,0.05710876]
[1765737129137,0.00016876,88869.0,88868.0,0.0686717]
[1765737133043,0.00016876,88869.0,88868.0,0.0696717]
[1765737133431,0.02983876,88869.0,88868.0,0.0696717]
[1765737133932,0.05808876,88869.0,88868.0,0.0696717]
[1765737134242,0.05808876,88869.0,88868.0,0.0686717]
[1765737134944,0.05908876,88869.0,88868.0,0.0686717]
[1765737135441,0.05808876,88869.0,88868.0,0.0686717]
[1765737135630,0.05908876,88869.0,88868.0,0.0686717]
[1765737136028,0.06008876,88869.0,88868.0,0.0686717]
[1765737140241,0.06008876,88869.0,88868.0,0.05742]
[1765737141631,0.03183876,88869.0,88868.0,0.05742]
[1765737142038,0.06008876,88869.0,88868.0,0.05742]
[1765737148648,0.03183876,88869.0,88868.0,0.05742]
[1765737149845,0.03083876,88869.0,88868.0,0.05742]
[1765737150263,0.02983876,88869.0,88868.0,0.05742]
[1765737150451,0.05806876,88869.0,88868.0,0.05742]
[1765737152452,0.05791,88867.0,88866.0,0.0397819]
[1765737152654,0.05791,88867.0,88866.0,0.0680919]
[1765737154054,0.05891,88867.0,88866.0,0.0680919]
[1765737154450,0.05991,88867.0,88866.0,0.0680919]
[1765737156259,0.05891,88867.0,88866.0,0.0680919]
[1765737156452,0.06091,88867.0,88866.0,0.0680919]
[1765737157047,0.05991,88867.0,88866.0,0.0680919]
[1765737158360,0.08665447,88867.0,88866.0,0.05684]
[1765737158664,0.08765447,88867.0,88866.0,0.05684]
[1765737159556,0.08665447,88867.0,88866.0,0.05684]
[1765737159755,0.08765447,88867.0,88866.0,0.05684]
[1765737160153,0.08865447,88867.0,88866.0,0.05684]
[1765737160353,0.08965447,88867.0,88866.0,0.05684]
[1765737162565,0.08965447,88867.0,88866.0,0.08924389]
[1765737163648,0.08865447,88867.0,88866.0,0.08924389]
[1765737164561,0.08965447,88867.0,88866.0,0.08924389]
[1765737166067,0.08765447,88867.0,88866.0,0.08924389]
[1765737166268,0.08965447,88867.0,88866.0,0.08924389]
[1765737166766,0.08865447,88867.0,88866.0,0.08924389]
[1765737166974,0.08665447,88867.0,88866.0,0.08924389]
[1765737167170,0.08765447,88867.0,88866.0,0.08924389]
[1765737167869,0.08665447,88867.0,88866.0,0.08924389]
[1765737168068,0.08765447,88867.0,88866.0,0.08924389]
[1765737179463,0.08765447,88867.0,88866.0,0.03240389]
[1765737180374,0.08765447,88867.0,88866.0,0.05995389]
[1765737180676,0.08765447,88867.0,88866.0,0.08827389]
[1765737182179,0.08765447,88867.0,88866.0,0.03240389]
[1765737184479,0.08765447,88867.0,88866.0,0.05995389]
[1765737184876,0.08765447,88867.0,88866.0,0.08827389]
[1765737187373,0.08765447,88867.0,88866.0,0.03240389]
[1765737187583,0.0662526,88861.0,88860.0,0.00016876]
[1765737187778,0.0662526,88861.0,88848.0,0.0737]
[1765737187779,0.055,88849.0,88848.0,0.0737]
[1765737188078,0.4158,88861.0,88860.0,0.0737]
[1765737188284,0.44342351,88861.0,88860.0,0.0737]
[1765737188779,0.08262351,88861.0,88860.0,0.0737]
[1765737188973,0.08262351,88861.0,88856.0,0.01783]
[1765737188974,0.0662531,88857.0,88856.0,0.02755]
[1765737189176,0.0662536,88853.0,88852.0,0.00016876]
[1765737189475,0.0662536,88853.0,88852.0,0.05603876]
[1765737197087,0.0662536,88853.0,88852.0,0.00016876]
[1765737198490,0.0662549,88843.0,88842.0,0.05587]
[1765737198987,0.055,88843.0,88842.0,0.05587]
[1765737199390,0.055,88843.0,88842.0,0.06732693]
[1765737200295,0.4158,88855.0,88854.0,0.05587]
[1765737200494,0.08256893,88855.0,88854.0,0.05587]
[1765737201087,0.055,88855.0,88854.0,0.05587]
[1765737201589,0.056,88855.0,88854.0,0.05587]
[1765737206084,0.001,88855.0,88854.0,0.05587]
[1765737206284,0.3608,88868.0,88867.0,0.0672418]
[1765737206984,0.38985,88868.0,88867.0,0.0672418]
[1765737207585,0.4182,88868.0,88867.0,0.0672418]
[1765737208091,0.3618,88868.0,88867.0,0.0672418]
[1765737208285,0.002,88868.0,88867.0,0.0672418]
[1765737210194,0.001,88868.0,88867.0,0.0672418]
[1765737210386,0.00016876,88869.0,88868.0,0.05799]
[1765737210782,0.03006876,88869.0,88868.0,0.05799]
[1765737211183,0.05741876,88869.0,88868.0,0.05799]
[1765737213795,0.0546849,88869.0,88868.0,0.05799]
[1765737214391,0.0516849,88869.0,88868.0,0.05799]
[1765737214586,0.0526849,88869.0,88868.0,0.05799]
[1765737219392,0.05251614,88869.0,88868.0,0.05799]
[1765737224687,0.05251614,88869.0,88868.0,0.07502]
[1765737225001,0.05151614,88869.0,88868.0,0.07502]
[1765737226697,0.05051614,88869.0,88868.0,0.07502]
[1765737226895,0.05151614,88869.0,88868.0,0.07502]
[1765737228903,0.001,88869.0,88868.0,0.07502]
[1765737230206,0.001,88869.0,88868.0,0.07602]
[1765737230707,0.05741876,88877.0,88876.0,0.0862707]
[1765737230906,0.08493631,88877.0,88876.0,0.0862707]
[1765737232006,0.08593631,88877.0,88876.0,0.0862707]
[1765737233211,0.08493631,88877.0,88876.0,0.0862707]
[1765737233411,0.08693631,88877.0,88876.0,0.0862707]
[1765737237609,0.08593631,88877.0,88876.0,0.0862707]
[1765737237808,0.08493631,88877.0,88876.0,0.0862707]
[1765737238009,0.08593631,88877.0,88876.0,0.0862707]
[1765737243912,0.0686411,88873.0,88872.0,0.0112511]
[1765737244118,0.09615865,88873.0,88872.0,0.0395611]
[1765737244522,0.09615865,88873.0,88872.0,0.0678011]
[1765737244722,0.08490755,88873.0,88872.0,0.0851411]
[1765737245017,0.05697755,88873.0,88872.0,0.0851411]
[1765737245523,0.08490755,88873.0,88872.0,0.0851411]
[1765737246220,0.08490755,88873.0,88872.0,0.0112511]
[1765737246420,0.08490755,88873.0,88872.0,0.0851411]
[1765737247812,0.08490755,88873.0,88872.0,0.08667723]
[1765737248523,0.09090755,88873.0,88872.0,0.08667723]
[1765737248822,0.03334875,88873.0,88872.0,0.08667723]
[1765737249022,0.03034875,88873.0,88872.0,0.08667723]
[1765737249223,0.02734875,88873.0,88872.0,0.08667723]
[1765737249530,0.05680875,88873.0,88872.0,0.08667723]
[1765737249920,0.05680875,88873.0,88872.0,0.08767723]
[1765737250730,0.00016876,88877.0,88876.0,0.0851407]
[1765737250913,0.0686389,88891.0,88890.0,0.05655]
[1765737251817,0.0686389,88891.0,88890.0,0.0676933]
[1765737252016,0.0716389,88891.0,88890.0,0.06922943]
[1765737252619,0.0726389,88891.0,88890.0,0.06922943]
[1765737253617,0.06139,88891.0,88890.0,0.06922943]
[1765737256224,0.05839,88891.0,88890.0,0.06922943]
[1765737260119,0.0696388,88891.0,88890.0,0.06922943]
[1765737260319,0.0696388,88891.0,88890.0,0.00153613]
[1765737260820,0.0696388,88891.0,88890.0,0.02984613]
[1765737261226,0.0696388,88891.0,88890.0,0.05808613]
[1765737262624,0.09687565,88891.0,88890.0,0.05808613]
[1765737263019,0.09687565,88891.0,88890.0,0.06917831]
[1765737264619,0.02823685,88891.0,88890.0,0.06917831]
[1765737264918,0.02823685,88891.0,88890.0,0.42997831]
[1765737264919,0.08562685,88891.0,88890.0,0.42997831]
[1765737265123,0.08562685,88891.0,88890.0,0.06917831]
[1765737265324,0.08562685,88891.0,88890.0,0.42997831]
[1765737265523,0.05839,88891.0,88890.0,0.42997831]
[1765737266734,0.05739,88891.0,88890.0,0.42997831]
[1765737267236,0.02962876,88899.0,88898.0,0.05612]
[1765737267533,0.00016876,88899.0,88898.0,0.4281679]
[1765737268036,0.03011876,88899.0,88898.0,0.42970403]
[1765737268533,0.03211876,88899.0,88898.0,0.42970403]
[1765737269026,0.06192876,88899.0,88898.0,0.41845613]
[1765737270229,0.06092876,88899.0,88898.0,0.41845613]
[1765737270533,0.00216876,88899.0,88898.0,0.41845613]
[1765737270725,0.03211876,88899.0,88898.0,0.41845613]
[1765737271427,0.00216876,88899.0,88898.0,0.41845613]
[1765737272433,0.00216876,88899.0,88898.0,0.05765613]
[1765737272634,0.00216876,88899.0,88898.0,0.41845613]
[1765737276031,0.03211876,88899.0,88898.0,0.41845613]
[1765737276234,0.00216876,88899.0,88898.0,0.41845613]
[1765737277337,0.03211876,88899.0,88898.0,0.41845613]
[1765737282441,0.06192876,88899.0,88898.0,0.41845613]
[1765737284144,0.03211876,88899.0,88898.0,0.41845613]
[1765737285844,0.03211876,88899.0,88898.0,0.05765613]
[1765737286544,0.00216876,88899.0,88898.0,0.05765613]
[1765737287341,0.03211876,88899.0,88898.0,0.05765613]
[1765737287544,0.00216876,88899.0,88898.0,0.05765613]
[1765737290444,0.041196,88914.0,88913.0,0.05611]
[1765737290642,0.09810699,88914.0,88913.0,0.05611]
[1765737291042,0.09810699,88914.0,88913.0,0.05764613]
[1765737291651,0.10210699,88914.0,88913.0,0.05764613]
[1765737292544,0.10610699,88914.0,88913.0,0.05764613]
[1765737292744,0.09486099,88914.0,88913.0,0.05764613]
[1765737293847,0.008,88914.0,88913.0,0.41844613]
[1765737294556,0.03795,88914.0,88913.0,0.41844613]
[1765737294948,0.06776,88914.0,88913.0,0.41844613]
[1765737295550,0.06476,88914.0,88913.0,0.41844613]
[1765737295853,0.005,88914.0,88913.0,0.41844613]
[1765737296246,0.004,88914.0,88913.0,0.41844613]
[1765737296451,0.005,88914.0,88913.0,0.41844613]
[1765737296645,0.002,88914.0,88913.0,0.41844613]
[1765737303458,0.05608857,88922.0,88921.0,0.069195]
[1765737303658,0.05419196,88922.0,88921.0,0.069195]
[1765737303955,0.3608,88933.0,88932.0,0.0863336]
[1765737303956,0.41672,88933.0,88932.0,0.0863336]
[1765737304155,0.082682,88933.0,88932.0,0.0863336]
[1765737304357,0.41672,88942.0,88941.0,0.0691925]
[1765737304558,0.44347843,88942.0,88941.0,0.0691925]
[1765737305062,0.08267843,88942.0,88941.0,0.07072863]
[1765737305857,0.02675843,88942.0,88941.0,0.08219386]
[1765737306161,0.08967843,88942.0,88941.0,0.08319386]
[1765737306360,0.10092073,88942.0,88941.0,0.00253613]
[1765737306552,0.10292073,88942.0,88941.0,0.00253613]
[1765737307560,0.10292073,88942.0,88941.0,0.07190515]
[1765737309361,0.10292073,88942.0,88941.0,0.00253613]
[1765737309958,0.0961305,88942.0,88941.0,0.00253613]
[1765737312364,0.0961305,88942.0,88933.0,0.00016866]
[1765737312365,0.0671633,88934.0,88933.0,0.00016866]
[1765737312562,0.4279633,88934.0,88933.0,0.00016866]
[1765737313860,0.4279633,88934.0,88921.0,0.3720449]
[1765737313861,0.05592,88922.0,88921.0,0.3608]
[1765737314068,0.067166,88913.0,88901.0,0.3608]
[1765737314368,0.05592,88904.0,88903.0,0.4299972]
[1765737314568,0.05592,88904.0,88903.0,0.44115157]
[1765737316560,0.05592,88904.0,88903.0,0.44215157]
[1765737317161,0.05592,88904.0,88903.0,0.4309972]
[1765737317360,0.05592,88904.0,88903.0,0.3618]
[1765737317768,0.05592,88904.0,88903.0,0.002]
[1765737318377,0.05592,88904.0,88903.0,0.001]
[1765737318569,0.05892,88904.0,88903.0,0.001]
[1765737318972,0.05892,88904.0,88903.0,0.05895]
[1765737319480,0.0311,88904.0,88903.0,0.05795]
[1765737319984,0.0321,88904.0,88903.0,0.05795]
[1765737320286,0.05992,88904.0,88903.0,0.05795]
[1765737320475,0.05892,88904.0,88903.0,0.05795]
[1765737321384,0.05592,88904.0,88903.0,0.05795]
[1765737321575,0.05692,88904.0,88903.0,0.05795]
[1765737323182,0.05592,88904.0,88903.0,0.05795]
[1765737323387,0.05692,88904.0,88903.0,0.05795]
[1765737323988,0.05592,88904.0,88903.0,0.05795]
[1765737324177,0.05692,88904.0,88903.0,0.05795]
[1765737324576,0.05792,88904.0,88903.0,0.05795]
[1765737327174,0.05892,88904.0,88903.0,0.05795]
[1765737330586,0.05196101,88904.0,88903.0,0.05795]
[1765737332777,0.0682276,88900.0,88899.0,0.0691277]
[1765737333184,0.0682276,88900.0,88899.0,0.07066302]
[1765737333883,0.0692276,88900.0,88899.0,0.07066302]
[1765737334582,0.0682276,88900.0,88899.0,0.07066302]
[1765737334783,0.0702276,88900.0,88899.0,0.07066302]
[1765737335580,0.0712276,88900.0,88899.0,0.07066302]
[1765737336486,0.0702276,88900.0,88899.0,0.07066302]
[1765737343292,0.09753004,88900.0,88899.0,0.07066302]
[1765737346985,0.09753004,88900.0,88899.0,0.00153532]
[1765737347390,0.09753004,88900.0,88899.0,0.05941532]
[1765737350001,0.08628244,88900.0,88899.0,0.05941532]
[1765737351195,0.08528244,88900.0,88899.0,0.05941532]
[1765737351900,0.08628244,88900.0,88899.0,0.05941532]
[1765737353996,0.08528244,88900.0,88899.0,0.05941532]
[1765737354200,0.08628244,88900.0,88899.0,0.05941532]
[1765737355102,0.08528244,88900.0,88899.0,0.05941532]
[1765737355605,0.08628244,88900.0,88899.0,0.05941532]
[1765737356103,0.08528244,88900.0,88899.0,0.05941532]
[1765737356307,0.08728244,88900.0,88899.0,0.05941532]
[1765737357212,0.08628244,88900.0,88899.0,0.05941532]
[1765737357403,0.08728244,88900.0,88899.0,0.05941532]
[1765737357602,0.08528244,88900.0,88899.0,0.05941532]
[1765737358006,0.08628244,88900.0,88899.0,0.05941532]
[1765737358410,0.08428244,88900.0,88899.0,0.05941532]
[1765737358708,0.08628244,88900.0,88899.0,0.05941532]
[1765737359208,0.08528244,88900.0,88899.0,0.05941532]
[1765737359408,0.08628244,88900.0,88899.0,0.05941532]
[1765737366711,0.08628244,88900.0,88899.0,0.07661532]
[1765737372319,0.44708244,88900.0,88899.0,0.00153532]
[1765737373516,0.44708244,88900.0,88899.0,0.06035532]
[1765737373716,0.08628244,88900.0,88899.0,0.06035532]
[1765737374627,0.08528244,88900.0,88899.0,0.06035532]
[1765737374924,0.08628244,88900.0,88899.0,0.06035532]
[1765737375124,0.08528244,88900.0,88899.0,0.06035532]
[1765737376424,0.44608244,88900.0,88899.0,0.00153532]
[1765737377624,0.44808244,88900.0,88899.0,0.00153532]
[1765737377822,0.44908244,88900.0,88899.0,0.00153532]
[1765737379226,0.44708244,88900.0,88899.0,0.00153532]
[1765737379526,0.44908244,88900.0,88899.0,0.00153532]
[1765737379928,0.44708244,88900.0,88899.0,0.00153532]
[1765737380226,0.44908244,88900.0,88899.0,0.00153532]
[1765737383131,0.44908244,88900.0,88899.0,0.03150532]
[1765737384640,0.44911018,88900.0,88899.0,0.03150532]
[1765737384834,0.44911018,88900.0,88899.0,0.06035532]
[1765737385136,0.44911018,88900.0,88899.0,0.03150532]
[1765737385932,0.44911018,88900.0,88899.0,0.06035532]
[1765737386433,0.44711018,88900.0,88899.0,0.06035532]
[1765737386734,0.44811018,88900.0,88899.0,0.06035532]
[1765737389028,0.44811018,88900.0,88899.0,0.00153532]
[1765737391432,0.45704018,88900.0,88899.0,0.00153532]
[1765737392137,0.44811018,88900.0,88899.0,0.00153532]
[1765737392534,0.08731018,88900.0,88899.0,0.00153532]
[1765737392831,0.44811018,88900.0,88899.0,0.00153532]
[1765737393522,0.08698018,88900.0,88899.0,0.06820312]
[1765737393932,0.08698018,88900.0,88899.0,0.42900312]
[1765737394534,0.05969018,88900.0,88899.0,0.42900312]
[1765737395622,0.05869018,88900.0,88899.0,0.42900312]
[1765737395826,0.05769018,88900.0,88899.0,0.42900312]
[1765737396433,0.05769018,88900.0,88899.0,0.43000312]
[1765737396636,0.05669018,88900.0,88899.0,0.43000312]
[1765737399537,0.02733018,88900.0,88899.0,0.43000312]
[1765737400638,0.0678964,88910.0,88909.0,0.0666665]
[1765737400837,0.09520809,88910.0,88909.0,0.0666665]
[1765737401341,0.09520809,88910.0,88909.0,0.06820182]
[1765737401638,0.05667169,88910.0,88909.0,0.06820182]
[1765737401836,0.02731169,88910.0,88909.0,0.06820182]
[1765737402032,0.003,88910.0,88909.0,0.06820182]
[1765737402841,0.002,88910.0,88909.0,0.06820182]
[1765737403135,0.001,88910.0,88909.0,0.06820182]
[1765737404635,0.00016833,88912.0,88911.0,0.05542]
[1765737405443,0.00016833,88912.0,88911.0,0.05695532]
[1765737405943,0.00116833,88912.0,88911.0,0.05695532]
[1765737406944,0.00116833,88912.0,88911.0,0.41775532]
[1765737407642,0.0112442,88928.0,88927.0,0.05542]
[1765737407643,0.05665,88928.0,88927.0,0.05542]
[1765737407835,0.083898,88928.0,88927.0,0.05542]
[1765737408245,0.083898,88928.0,88927.0,0.05695532]
[1765737408942,0.05865,88928.0,88927.0,0.05695532]
[1765737409338,0.06265,88928.0,88927.0,0.05695532]
[1765737410337,0.03536,88928.0,88927.0,0.05695532]
[1765737410539,0.006,88928.0,88927.0,0.05695532]
[1765737410938,0.006,88928.0,88927.0,0.41775532]
[1765737411545,0.02936,88941.0,88940.0,0.0287326]
[1765737411746,0.02936,88941.0,88940.0,0.0841526]
[1765737411940,0.05665,88941.0,88940.0,0.0841526]
[1765737412339,0.05665,88941.0,88940.0,0.08568792]
[1765737412745,0.06265,88941.0,88940.0,0.08668792]
[1765737412946,0.06465,88941.0,88940.0,0.08668792]
[1765737413146,0.06465,88941.0,88940.0,0.09808435]
[1765737414047,0.008,88941.0,88940.0,0.09808435]
[1765737414436,0.03736,88941.0,88940.0,0.09808435]
[1765737415842,0.008,88941.0,88940.0,0.09808435]
[1765737416547,0.0645,88941.0,88940.0,0.09808435]
[1765737418153,0.03676,88941.0,88940.0,0.09808435]
[1765737421352,0.0645,88941.0,88940.0,0.09808435]
[1765737421547,0.0645,88941.0,88940.0,0.45888435]
[1765737421745,0.0645,88941.0,88940.0,0.09808435]
[1765737424145,0.0645,88941.0,88940.0,0.00253532]
[1765737425248,0.0913379,88941.0,88940.0,0.00253532]
[1765737426648,0.0348379,88941.0,88940.0,0.07715532]
[1765737426960,0.0645,88941.0,88940.0,0.43795532]
[1765737429956,0.03676,88941.0,88940.0,0.43795532]
[1765737430253,0.008,88941.0,88940.0,0.43795532]
[1765737432451,0.0645,88941.0,88940.0,0.43795532]
[1765737434161,0.09140655,88941.0,88940.0,0.43795532]
[1765737435053,0.09140655,88941.0,88940.0,0.00253532]
[1765737435253,0.45220655,88941.0,88940.0,0.00253532]
[1765737435666,0.5128391,88941.0,88940.0,0.00253532]
[1765737435867,0.45220655,88941.0,88940.0,0.00253532]
[1765737436963,0.51277375,88941.0,88940.0,0.00253532]
[1765737437176,0.45220655,88941.0,88940.0,0.00253532]
[1765737442272,0.51279632,88941.0,88940.0,0.00253532]
[1765737445571,0.45220655,88941.0,88940.0,0.00253532]
[1765737446474,0.05758,88921.0,88920.0,0.08323328]
[1765737446680,0.08448655,88921.0,88920.0,0.08323328]
[1765737448267,0.08548655,88921.0,88920.0,0.08323328]
[1765737451881,0.05621655,88921.0,88920.0,0.08323328]
[1765737452582,0.02790655,88921.0,88920.0,0.08323328]
[1765737452970,0.05621655,88921.0,88920.0,0.08323328]
[1765737453269,0.08548655,88921.0,88920.0,0.08323328]
[1765737455482,0.05858,88921.0,88920.0,0.08323328]
[1765737456470,0.02931,88921.0,88920.0,0.08323328]
[1765737456677,0.001,88921.0,88920.0,0.08323328]
[1765737457073,0.02931,88921.0,88920.0,0.08323328]
[1765737457382,0.001,88921.0,88920.0,0.08323328]
[1765737458684,0.02931,88921.0,88920.0,0.08323328]
[1765737459582,0.05858,88921.0,88920.0,0.08323328]
[1765737464891,0.001,88921.0,88920.0,0.08323328]
[1765737465084,0.02931,88921.0,88920.0,0.08323328]
[1765737466089,0.05858,88921.0,88920.0,0.08323328]
[1765737468383,0.05758,88920.0,88918.0,0.3608]
[1765737468584,0.05758,88898.0,88897.0,0.41636]
[1765737469394,0.05758,88898.0,88897.0,0.42756125]
[1765737469694,0.05758,88898.0,88897.0,0.43880925]
[1765737469881,0.05774866,88906.0,88905.0,0.07189]
[1765737470185,0.08482962,88906.0,88905.0,0.07189]
[1765737471394,0.05774866,88906.0,88905.0,0.07189]
[1765737471879,0.00016866,88906.0,88905.0,0.07189]
[1765737472078,0.05774866,88906.0,88905.0,0.07189]
[1765737472888,0.05774866,88906.0,88905.0,0.07289]
[1765737473495,0.05774866,88906.0,88905.0,0.07389]
[1765737474197,0.05774866,88906.0,88905.0,0.07289]
[1765737476402,0.05774866,88906.0,88905.0,0.07189]
[1765737480104,0.06899556,88906.0,88905.0,0.07189]
[1765737480299,0.05774866,88906.0,88905.0,0.07189]
[1765737481800,0.05874866,88906.0,88905.0,0.07189]
[1765737482603,0.05774866,88906.0,88905.0,0.07189]
[1765737483390,0.00016866,88906.0,88905.0,0.07189]
[1765737484800,0.00116866,88906.0,88905.0,0.07189]
[1765737485500,0.00016866,88906.0,88905.0,0.07189]
[1765737485701,0.00016866,88906.0,88905.0,0.07289]
[1765737485903,0.00016866,88906.0,88905.0,0.07389]
[1765737486204,0.3608,88929.0,88920.0,0.01751]
[1765737486396,0.0676428,88929.0,88928.0,0.05684]
[1765737486597,0.09463502,88929.0,88928.0,0.05684]
[1765737487902,0.09763502,88929.0,88928.0,0.05684]
[1765737488605,0.09463502,88929.0,88928.0,0.05684]
[1765737488907,0.0564,88921.0,88920.0,0.00016866]
[1765737489214,0.44419222,88921.0,88920.0,0.00016866]
[1765737491012,0.44519222,88921.0,88920.0,0.00016866]
[1765737495710,0.44519222,88921.0,88920.0,0.02763866]